fUSD/lending_fUSD_20260513
["ID","MTS","AMOUNT","RATE_DAILY","PERIOD"]
[422145409,1778619044000,-597.427521,0.00033924,7]
[422145420,1778619044000,-1154.057842,0.00033924,7]
[422145410,1778619044000,-597.427521,0.00033924,7]
[422145413,1778619044000,-151.0,0.00033924,7]
[422145418,1778619044000,-151.0,0.00033924,7]
[422145419,1778619044000,-151.0,0.00033924,7]
[422145414,1778619044000,-448.648598,0.00033924,7]
[422145411,1778619044000,-448.648598,0.00033924,7]
[422145412,1778619044000,-448.648598,0.00033924,7]
[422145421,1778619044000,-1154.057842,0.00033924,7]
[422145415,1778619044000,-151.0,0.00033924,7]
[422145416,1778619044000,-151.0,0.00033924,7]
[422145417,1778619044000,-448.648598,0.00033924,7]
[422145422,1778619044000,-1154.057842,0.00033924,7]
[422145430,1778619044000,-151.0,0.00033924,7]
[422145423,1778619044000,-1154.057842,0.00033924,7]
[422145460,1778619044000,-500.0,0.00034008,2]
[422145506,1778619044000,-500.0,0.00034008,2]
[422145464,1778619044000,-500.0,0.00034008,2]
[422145485,1778619044000,-500.0,0.00034008,2]
[422145486,1778619044000,-500.0,0.00034008,2]
[422145484,1778619044000,-500.0,0.00034008,2]
[422145494,1778619044000,-500.0,0.00034008,2]
[422145496,1778619044000,-500.0,0.00034008,2]
[422145499,1778619044000,-500.0,0.00034008,2]
[422145498,1778619044000,-500.0,0.00034008,2]
[422145497,1778619044000,-500.0,0.00034008,2]
[422145514,1778619044000,-500.0,0.00034008,2]
[422145505,1778619044000,-500.0,0.00034008,2]
[422145495,1778619044000,-500.0,0.00034008,2]
[422145500,1778619044000,-500.0,0.00034008,2]
[422145502,1778619044000,-500.0,0.00034008,2]
[422145501,1778619044000,-500.0,0.00034008,2]
[422145503,1778619044000,-500.0,0.00034008,2]
[422145504,1778619044000,-500.0,0.00034008,2]
[422145508,1778619044000,-500.0,0.00034008,2]
[422145518,1778619044000,-500.0,0.00034008,2]
[422145513,1778619044000,-500.0,0.00034008,2]
[422145512,1778619044000,-500.0,0.00034008,2]
[422145511,1778619044000,-500.0,0.00034008,2]
[422145516,1778619044000,-500.0,0.00034008,2]
[422145507,1778619044000,-500.0,0.00034008,2]
[422145510,1778619044000,-500.0,0.00034008,2]
[422145515,1778619044000,-500.0,0.00034008,2]
[422145517,1778619044000,-500.0,0.00034008,2]
[422145509,1778619044000,-500.0,0.00034008,2]
[422145493,1778619044000,-500.0,0.00034008,2]
[422145488,1778619044000,-500.0,0.00034008,2]
[422145458,1778619044000,-500.0,0.00034008,2]
[422145487,1778619044000,-500.0,0.00034008,2]
[422145492,1778619044000,-500.0,0.00034008,2]
[422145461,1778619044000,-500.0,0.00034008,2]
[422145457,1778619044000,-500.0,0.00034008,2]
[422145455,1778619044000,-500.0,0.00034008,2]
[422145465,1778619044000,-500.0,0.00034008,2]
[422145454,1778619044000,-500.0,0.00034008,2]
[422145466,1778619044000,-500.0,0.00034008,2]
[422145456,1778619044000,-500.0,0.00034008,2]
[422145467,1778619044000,-500.0,0.00034008,2]
[422145469,1778619044000,-500.0,0.00034008,2]
[422145470,1778619044000,-500.0,0.00034008,2]
[422145471,1778619044000,-500.0,0.00034008,2]
[422145468,1778619044000,-500.0,0.00034008,2]
[422145472,1778619044000,-500.0,0.00034008,2]
[422145459,1778619044000,-500.0,0.00034008,2]
[422145474,1778619044000,-500.0,0.00034008,2]
[422145476,1778619044000,-500.0,0.00034008,2]
[422145490,1778619044000,-500.0,0.00034008,2]
[422145482,1778619044000,-500.0,0.00034008,2]
[422145483,1778619044000,-500.0,0.00034008,2]
[422145491,1778619044000,-500.0,0.00034008,2]
[422145481,1778619044000,-500.0,0.00034008,2]
[422145480,1778619044000,-500.0,0.00034008,2]
[422145489,1778619044000,-500.0,0.00034008,2]
[422145477,1778619044000,-500.0,0.00034008,2]
[422145478,1778619044000,-500.0,0.00034008,2]
[422145475,1778619044000,-500.0,0.00034008,2]
[422145479,1778619044000,-500.0,0.00034008,2]
[422145473,1778619044000,-500.0,0.00034008,2]
[422145557,1778619045000,-1150.17820742,0.00034481,2]
[422145563,1778619045000,-189.052952,0.00034595,7]
[422145562,1778619045000,-151.0,0.00034595,7]
[422145558,1778619045000,-40045.0,0.00034511,60]
[422145555,1778619045000,-40045.0,0.00034427,60]
[422145550,1778619045000,-40045.0,0.00034259,60]
[422145566,1778619045000,-158.0,0.00034741,30]
[422145556,1778619045000,-1000.0,0.00034481,2]
[422145546,1778619045000,-1353.0,0.00034235,2]
[422145552,1778619045000,-665.64,0.000343,7]
[422145560,1778619045000,-40045.0,0.00034595,60]
[422145567,1778619045000,-174.0,0.00034741,30]
[422145561,1778619045000,-151.0,0.00034595,7]
[422145575,1778619045000,-40045.0,0.00034763,60]
[422145559,1778619045000,-151.41,0.00034521,120]
[422145565,1778619045000,-154.0,0.00034741,30]
[422145568,1778619045000,-240.0,0.00034741,30]
[422145569,1778619045000,-178.0,0.0003475,30]
[422145579,1778619045000,-1500.0,0.000352,7]
[422145570,1778619045000,-158.0,0.00034751,30]
[422145577,1778619045000,-40050.0,0.00034931,60]
[422145574,1778619045000,-175.0,0.00034751,30]
[422145573,1778619045000,-1251.0,0.00034751,30]
[422145572,1778619045000,-510.0,0.00034751,30]
[422145571,1778619045000,-174.0,0.00034751,30]
[422145576,1778619045000,-40045.0,0.00034847,60]
[422145551,1778619045000,-151.0,0.00034259,7]
[422145564,1778619045000,-40045.0,0.00034679,60]
[422145547,1778619045000,-3540.0,0.00034235,2]
[422145533,1778619045000,-500.0,0.00034008,2]
[422145545,1778619045000,-258.495888,0.00034175,7]
[422145578,1778619045000,-230.18713181,0.00034937,120]
[422145524,1778619045000,-500.0,0.00034008,2]
[422145522,1778619045000,-500.0,0.00034008,2]
[422145523,1778619045000,-500.0,0.00034008,2]
[422145521,1778619045000,-500.0,0.00034008,2]
[422145525,1778619045000,-500.0,0.00034008,2]
[422145527,1778619045000,-500.0,0.00034008,2]
[422145528,1778619045000,-500.0,0.00034008,2]
[422145526,1778619045000,-500.0,0.00034008,2]
[422145530,1778619045000,-500.0,0.00034008,2]
[422145520,1778619045000,-500.0,0.00034008,2]
[422145529,1778619045000,-500.0,0.00034008,2]
[422145532,1778619045000,-500.0,0.00034008,2]
[422145548,1778619045000,-930.0,0.00034235,2]
[422145531,1778619045000,-500.0,0.00034008,2]
[422145542,1778619045000,-229.754449,0.00034091,7]
[422145541,1778619045000,-151.0,0.00034091,7]
[422145537,1778619045000,-2326.949,0.0003403,37]
[422145535,1778619045000,-296.382654,0.00034008,2]
[422145538,1778619045000,-161.837,0.0003403,37]
[422145536,1778619045000,-151.0,0.00034008,7]
[422145539,1778619045000,-40045.0,0.00034091,60]
[422145540,1778619045000,-151.0,0.00034091,7]
[422145543,1778619045000,-151.0,0.00034091,7]
[422145554,1778619045000,-173.0,0.00034425,3]
[422145553,1778619045000,-40045.0,0.00034343,60]
[422145544,1778619045000,-40045.0,0.00034175,60]
[422145549,1778619045000,-806.41919682,0.00034249,2]
[422145534,1778619045000,-500.0,0.00034008,2]
[422145581,1778619045000,-410.3534786,0.00035322,120]
[422145519,1778619045000,-500.0,0.00034008,2]
[422145591,1778619045000,-500.0,0.00035616,7]
[422145612,1778619045000,-2390.49,0.000358,14]
[422145611,1778619045000,-175.0,0.00035751,30]
[422145614,1778619045000,-1000.0,0.00036048,2]
[422145618,1778619045000,-528.38409247,0.00036598,2]
[422145619,1778619045000,-216.01767121,0.00036655,2]
[422145621,1778619045000,-179.3,0.00036672,5]
[422145627,1778619045000,-174.0,0.00036751,30]
[422145629,1778619045000,-1251.0,0.00036751,30]
[422145630,1778619045000,-175.0,0.00036751,30]
[422145620,1778619045000,-179.3,0.00036672,5]
[422145628,1778619045000,-510.0,0.00036751,30]
[422145622,1778619045000,-154.0,0.00036741,30]
[422145624,1778619045000,-174.0,0.00036741,30]
[422145623,1778619045000,-158.0,0.00036741,30]
[422145625,1778619045000,-240.0,0.00036741,30]
[422145626,1778619045000,-178.0,0.0003675,30]
[422145632,1778619045000,-2083.688,0.00037149,2]
[422145643,1778619045000,-300.0,0.00037377,2]
[422145639,1778619045000,-300.0,0.00037377,2]
[422145640,1778619045000,-864.10865205,0.00037377,2]
[422145637,1778619045000,-300.0,0.00037377,2]
[422145642,1778619045000,-300.0,0.00037377,2]
[422145633,1778619045000,-150.5,0.00037149,2]
[422145631,1778619045000,-1000.0,0.00036986,120]
[422145636,1778619045000,-393.192,0.00037235,2]
[422145634,1778619045000,-1353.0,0.00037235,2]
[422145638,1778619045000,-309.46605895,0.00037377,2]
[422145610,1778619045000,-1251.0,0.00035751,30]
[422145616,1778619045000,-152.0,0.00036117,6]
[422145635,1778619045000,-3540.0,0.00037235,2]
[422145615,1778619045000,-1000.0,0.00036048,2]
[422145613,1778619045000,-1000.0,0.00036048,2]
[422145582,1778619045000,-159.0818048,0.00035322,120]
[422145584,1778619045000,-500.0,0.00035616,7]
[422145589,1778619045000,-500.0,0.00035616,7]
[422145588,1778619045000,-500.0,0.00035616,7]
[422145580,1778619045000,-1008.75464268,0.00035257,4]
[422145583,1778619045000,-1000.0,0.00035616,120]
[422145586,1778619045000,-500.0,0.00035616,7]
[422145585,1778619045000,-500.0,0.00035616,7]
[422145587,1778619045000,-500.0,0.00035616,7]
[422145590,1778619045000,-500.0,0.00035616,7]
[422145593,1778619045000,-500.0,0.00035616,7]
[422145595,1778619045000,-500.0,0.00035616,7]
[422145598,1778619045000,-500.0,0.00035616,7]
[422145592,1778619045000,-500.0,0.00035616,7]
[422145597,1778619045000,-500.0,0.00035616,7]
[422145596,1778619045000,-500.0,0.00035616,7]
[422145609,1778619045000,-510.0,0.00035751,30]
[422145608,1778619045000,-174.0,0.00035751,30]
[422145606,1778619045000,-240.0,0.00035741,30]
[422145617,1778619045000,-665.64,0.000362,7]
[422145601,1778619045000,-178.58,0.00035616,2]
[422145607,1778619045000,-178.0,0.0003575,30]
[422145605,1778619045000,-174.0,0.00035741,30]
[422145602,1778619045000,-905.86,0.00035638,30]
[422145604,1778619045000,-158.0,0.00035741,30]
[422145594,1778619045000,-498.06540057,0.00035616,7]
[422145600,1778619045000,-285.31390229,0.00035616,2]
[422145599,1778619045000,-500.0,0.00035616,7]
[422145603,1778619045000,-154.0,0.00035741,30]
[422145678,1778619046000,-310.77293504,0.00037377,2]
[422145697,1778619046000,-1000.0,0.00037615,2]
[422145696,1778619046000,-2083.688,0.00037613,2]
[422145680,1778619046000,-463.6616139,0.00037377,2]
[422145682,1778619046000,-576.93890108,0.00037377,2]
[422145673,1778619046000,-300.0,0.00037377,2]
[422145677,1778619046000,-300.0,0.00037377,2]
[422145684,1778619046000,-451.72868137,0.00037377,2]
[422145679,1778619046000,-300.0,0.00037377,2]
[422145683,1778619046000,-300.0,0.00037377,2]
[422145681,1778619046000,-300.0,0.00037377,2]
[422145693,1778619046000,-2083.688,0.00037381,2]
[422145686,1778619046000,-300.0,0.00037377,2]
[422145685,1778619046000,-300.0,0.00037377,2]
[422145689,1778619046000,-300.0,0.00037377,2]
[422145688,1778619046000,-440.45546341,0.00037377,2]
[422145695,1778619046000,-905.86,0.00037593,30]
[422145675,1778619046000,-300.0,0.00037377,2]
[422145690,1778619046000,-483.88780455,0.00037377,2]
[422145691,1778619046000,-309.70196001,0.00037377,2]
[422145687,1778619046000,-300.0,0.00037377,2]
[422145694,1778619046000,-347.02065744,0.00037398,120]
[422145698,1778619046000,-1000.0,0.00037615,2]
[422145699,1778619046000,-594.7831071,0.00037652,2]
[422145703,1778619046000,-7881.586633,0.000377,2]
[422145700,1778619046000,-195.62,0.00037671,13]
[422145692,1778619046000,-300.0,0.00037377,2]
[422145676,1778619046000,-300.0,0.00037377,2]
[422145659,1778619046000,-604.21547136,0.00037377,2]
[422145672,1778619046000,-864.10865205,0.00037377,2]
[422145701,1778619046000,-195.62,0.00037671,13]
[422145644,1778619046000,-300.0,0.00037377,2]
[422145645,1778619046000,-300.0,0.00037377,2]
[422145646,1778619046000,-300.0,0.00037377,2]
[422145648,1778619046000,-300.0,0.00037377,2]
[422145650,1778619046000,-300.0,0.00037377,2]
[422145649,1778619046000,-300.0,0.00037377,2]
[422145647,1778619046000,-300.0,0.00037377,2]
[422145652,1778619046000,-300.0,0.00037377,2]
[422145653,1778619046000,-300.0,0.00037377,2]
[422145651,1778619046000,-300.0,0.00037377,2]
[422145657,1778619046000,-300.0,0.00037377,2]
[422145655,1778619046000,-300.0,0.00037377,2]
[422145654,1778619046000,-300.0,0.00037377,2]
[422145658,1778619046000,-364.41022781,0.00037377,2]
[422145671,1778619046000,-300.0,0.00037377,2]
[422145670,1778619046000,-309.46605895,0.00037377,2]
[422145660,1778619046000,-300.0,0.00037377,2]
[422145661,1778619046000,-300.0,0.00037377,2]
[422145669,1778619046000,-300.0,0.00037377,2]
[422145663,1778619046000,-300.45062341,0.00037377,2]
[422145666,1778619046000,-853.86030012,0.00037377,2]
[422145662,1778619046000,-893.04482543,0.00037377,2]
[422145664,1778619046000,-369.9993154,0.00037377,2]
[422145667,1778619046000,-526.68525168,0.00037377,2]
[422145665,1778619046000,-300.0,0.00037377,2]
[422145668,1778619046000,-300.0,0.00037377,2]
[422145674,1778619046000,-1754.96949453,0.00037377,2]
[422145656,1778619046000,-492.49408754,0.00037377,2]
[422145702,1778619046000,-195.61,0.00037671,13]
[422145704,1778619046000,-1444.0,0.00037753,120]
[422145739,1778619046000,-500.0,0.00038356,2]
[422145738,1778619046000,-500.0,0.00038356,2]
[422145740,1778619046000,-412.11884607,0.00038356,2]
[422145741,1778619046000,-500.0,0.00038356,2]
[422145736,1778619046000,-500.0,0.00038356,2]
[422145743,1778619046000,-500.0,0.00038356,2]
[422145750,1778619046000,-500.0,0.00038356,2]
[422145752,1778619046000,-500.0,0.00038356,2]
[422145742,1778619046000,-500.0,0.00038356,2]
[422145746,1778619046000,-500.0,0.00038356,2]
[422145749,1778619046000,-500.0,0.00038356,2]
[422145753,1778619046000,-500.0,0.00038356,2]
[422145744,1778619046000,-500.0,0.00038356,2]
[422145754,1778619046000,-500.0,0.00038356,2]
[422145748,1778619046000,-500.0,0.00038356,2]
[422145745,1778619046000,-403.63901603,0.00038356,2]
[422145751,1778619046000,-500.0,0.00038356,2]
[422145756,1778619046000,-500.0,0.00038356,2]
[422145760,1778619046000,-500.0,0.00038356,2]
[422145757,1778619046000,-500.0,0.00038356,2]
[422145759,1778619046000,-500.0,0.00038356,2]
[422145761,1778619046000,-500.0,0.00038356,2]
[422145758,1778619046000,-500.0,0.00038356,2]
[422145762,1778619046000,-500.0,0.00038356,2]
[422145755,1778619046000,-500.0,0.00038356,2]
[422145763,1778619046000,-500.0,0.00038356,2]
[422145709,1778619046000,-150.0,0.00038,2]
[422145737,1778619046000,-500.0,0.00038356,2]
[422145735,1778619046000,-500.0,0.00038356,2]
[422145747,1778619046000,-500.0,0.00038356,2]
[422145727,1778619046000,-901.41552933,0.00038356,7]
[422145726,1778619046000,-158.82843331,0.00038329,120]
[422145705,1778619046000,-2083.688,0.00037845,2]
[422145708,1778619046000,-150.0,0.00038,10]
[422145707,1778619046000,-255.42080281,0.00038,5]
[422145710,1778619046000,-2142.4184079,0.00038,2]
[422145722,1778619046000,-200.0,0.0003814,6]
[422145711,1778619046000,-150.0,0.00038,2]
[422145721,1778619046000,-200.0,0.0003814,6]
[422145719,1778619046000,-200.0,0.00038138,6]
[422145712,1778619046000,-17547.98502526,0.00038,2]
[422145718,1778619046000,-665.64,0.000381,7]
[422145716,1778619046000,-224.5453,0.00038077,2]
[422145713,1778619046000,-150.0,0.00038,2]
[422145715,1778619046000,-2083.688,0.00038077,2]
[422145706,1778619046000,-39401.69669405,0.00038,2]
[422145733,1778619046000,-500.0,0.00038356,2]
[422145720,1778619046000,-200.0,0.00038138,6]
[422145717,1778619046000,-275.32714793,0.000381,33]
[422145723,1778619046000,-235.55,0.000382,30]
[422145724,1778619046000,-2390.49,0.000382,14]
[422145725,1778619046000,-2083.688,0.00038309,2]
[422145731,1778619046000,-500.0,0.00038356,2]
[422145730,1778619046000,-500.0,0.00038356,2]
[422145728,1778619046000,-500.0,0.00038356,2]
[422145714,1778619046000,-1250.21591447,0.00038,2]
[422145732,1778619046000,-500.0,0.00038356,2]
[422145734,1778619046000,-500.0,0.00038356,2]
[422145729,1778619046000,-500.0,0.00038356,2]
[422145797,1778619047000,-151.0,0.00038356,30]
[422145803,1778619047000,-1558.112327,0.000385,32]
[422145794,1778619047000,-931.8569684,0.00038356,7]
[422145804,1778619047000,-929.31,0.00038502,2]
[422145805,1778619047000,-929.31,0.00038502,2]
[422145795,1778619047000,-266.0,0.00038356,2]
[422145791,1778619047000,-412.34123343,0.00038356,7]
[422145793,1778619047000,-1000.0,0.00038356,7]
[422145796,1778619047000,-151.0,0.00038356,30]
[422145800,1778619047000,-619.28,0.00038356,120]
[422145792,1778619047000,-1000.0,0.00038356,7]
[422145808,1778619047000,-929.31,0.00038504,2]
[422145798,1778619047000,-373.55,0.00038356,120]
[422145811,1778619047000,-521.02518271,0.00038552,10]
[422145815,1778619047000,-500.0,0.00038699,7]
[422145807,1778619047000,-929.29,0.00038504,2]
[422145812,1778619047000,-152.0,0.00038621,7]
[422145810,1778619047000,-2083.688,0.00038542,2]
[422145809,1778619047000,-929.31,0.00038504,2]
[422145813,1778619047000,-500.0,0.00038699,7]
[422145818,1778619047000,-500.0,0.00038699,7]
[422145817,1778619047000,-500.0,0.00038699,7]
[422145820,1778619047000,-500.0,0.00038699,7]
[422145819,1778619047000,-500.0,0.00038699,7]
[422145821,1778619047000,-500.0,0.00038699,7]
[422145822,1778619047000,-500.0,0.00038699,7]
[422145823,1778619047000,-500.0,0.00038699,7]
[422145814,1778619047000,-500.0,0.00038699,7]
[422145801,1778619047000,-929.31,0.000385,2]
[422145825,1778619047000,-500.0,0.00038699,7]
[422145802,1778619047000,-929.31,0.000385,2]
[422145764,1778619047000,-500.0,0.00038356,2]
[422145766,1778619047000,-500.0,0.00038356,2]
[422145765,1778619047000,-385.45,0.00038356,2]
[422145768,1778619047000,-500.0,0.00038356,2]
[422145767,1778619047000,-500.0,0.00038356,2]
[422145770,1778619047000,-500.0,0.00038356,2]
[422145769,1778619047000,-500.0,0.00038356,2]
[422145778,1778619047000,-500.0,0.00038356,2]
[422145771,1778619047000,-500.0,0.00038356,2]
[422145777,1778619047000,-500.0,0.00038356,2]
[422145775,1778619047000,-500.0,0.00038356,2]
[422145776,1778619047000,-500.0,0.00038356,2]
[422145772,1778619047000,-500.0,0.00038356,2]
[422145773,1778619047000,-500.0,0.00038356,2]
[422145774,1778619047000,-500.0,0.00038356,2]
[422145779,1778619047000,-500.0,0.00038356,2]
[422145782,1778619047000,-500.0,0.00038356,2]
[422145783,1778619047000,-500.0,0.00038356,2]
[422145781,1778619047000,-500.0,0.00038356,2]
[422145786,1778619047000,-500.0,0.00038356,2]
[422145789,1778619047000,-549.20114907,0.00038356,2]
[422145784,1778619047000,-500.0,0.00038356,2]
[422145788,1778619047000,-500.0,0.00038356,2]
[422145785,1778619047000,-500.0,0.00038356,2]
[422145790,1778619047000,-500.0,0.00038356,7]
[422145780,1778619047000,-500.0,0.00038356,2]
[422145787,1778619047000,-500.0,0.00038356,2]
[422145799,1778619047000,-764.72,0.00038356,120]
[422145824,1778619047000,-500.0,0.00038699,7]
[422145806,1778619047000,-929.31,0.00038502,2]
[422145816,1778619047000,-500.0,0.00038699,7]
[422145857,1778619047000,-2292.25,0.00039239,2]
[422145861,1778619047000,-2292.47,0.00039241,2]
[422145862,1778619047000,-150.67,0.00039242,120]
[422145864,1778619047000,-511.11,0.00039242,2]
[422145858,1778619047000,-968.35,0.00039239,2]
[422145860,1778619047000,-188.48,0.00039241,2]
[422145863,1778619047000,-967.41,0.00039242,2]
[422145859,1778619047000,-511.65,0.0003924,2]
[422145866,1778619047000,-2000.0,0.0003925,2]
[422145868,1778619047000,-2292.25,0.00039292,7]
[422145871,1778619047000,-188.48,0.00039294,7]
[422145872,1778619047000,-2292.47,0.00039294,7]
[422145867,1778619047000,-10000.0,0.0003925,2]
[422145856,1778619047000,-984.08050217,0.0003922,2]
[422145870,1778619047000,-511.65,0.00039293,7]
[422145869,1778619047000,-968.35,0.00039292,7]
[422145874,1778619047000,-511.11,0.00039295,7]
[422145878,1778619047000,-2292.25,0.00039346,30]
[422145873,1778619047000,-967.41,0.00039295,7]
[422145876,1778619047000,-350.0,0.000393,12]
[422145875,1778619047000,-188.56,0.00039297,7]
[422145880,1778619047000,-188.48,0.00039347,30]
[422145886,1778619047000,-2292.25,0.00039399,2]
[422145879,1778619047000,-968.35,0.00039346,30]
[422145881,1778619047000,-511.65,0.00039347,30]
[422145882,1778619047000,-2292.47,0.00039347,30]
[422145883,1778619047000,-967.41,0.00039348,30]
[422145826,1778619047000,-500.0,0.00038699,7]
[422145877,1778619047000,-150.67,0.00039342,120]
[422145854,1778619047000,-1579.0,0.0003916,11]
[422145884,1778619047000,-511.11,0.00039348,30]
[422145855,1778619047000,-1000.0,0.00039183,2]
[422145827,1778619047000,-500.0,0.00038699,7]
[422145829,1778619047000,-500.0,0.00038699,7]
[422145840,1778619047000,-150.67,0.00038942,120]
[422145839,1778619047000,-2000.0,0.000389,7]
[422145828,1778619047000,-500.0,0.00038699,7]
[422145830,1778619047000,-500.0,0.00038699,7]
[422145834,1778619047000,-261.33032399,0.00038699,7]
[422145838,1778619047000,-150.67,0.00038842,120]
[422145865,1778619047000,-188.56,0.00039244,2]
[422145832,1778619047000,-500.0,0.00038699,7]
[422145837,1778619047000,-5648.49680888,0.000388,2]
[422145835,1778619047000,-150.67,0.00038742,120]
[422145836,1778619047000,-2083.688,0.00038774,2]
[422145833,1778619047000,-500.0,0.00038699,7]
[422145831,1778619047000,-500.0,0.00038699,7]
[422145853,1778619047000,-150.67,0.00039142,120]
[422145850,1778619047000,-302.27632886,0.000391,30]
[422145841,1778619047000,-152.0,0.00039,2]
[422145849,1778619047000,-227.23986923,0.000391,30]
[422145851,1778619047000,-302.27632884,0.000391,30]
[422145848,1778619047000,-1000.0,0.00039079,120]
[422145847,1778619047000,-150.67,0.00039042,120]
[422145846,1778619047000,-2083.6885,0.00039006,2]
[422145843,1778619047000,-150.0,0.00039,2]
[422145844,1778619047000,-152.2523277,0.00039,2]
[422145885,1778619047000,-188.56,0.0003935,30]
[422145852,1778619047000,-302.27632884,0.000391,30]
[422145842,1778619047000,-410.38,0.00039,2]
[422145845,1778619047000,-1500.0,0.00039,32]
[422145926,1778619048000,-968.35,0.0003956,2]
[422145930,1778619048000,-967.41,0.00039562,2]
[422145927,1778619048000,-188.48,0.00039561,2]
[422145925,1778619048000,-2292.25,0.0003956,2]
[422145924,1778619048000,-905.86,0.00039547,30]
[422145918,1778619048000,-188.48,0.00039508,30]
[422145922,1778619048000,-188.56,0.0003951,30]
[422145919,1778619048000,-2292.47,0.00039508,30]
[422145921,1778619048000,-511.11,0.00039508,30]
[422145920,1778619048000,-967.41,0.00039508,30]
[422145923,1778619048000,-151.0,0.00039525,14]
[422145928,1778619048000,-511.65,0.00039561,2]
[422145944,1778619048000,-511.65,0.00039614,7]
[422145931,1778619048000,-511.11,0.00039562,2]
[422145934,1778619048000,-200.0,0.00039593,2]
[422145933,1778619048000,-1000.0,0.00039564,10]
[422145932,1778619048000,-188.56,0.00039563,2]
[422145935,1778619048000,-235.55,0.000396,30]
[422145939,1778619048000,-219.05143,0.000396,115]
[422145942,1778619048000,-2292.25,0.00039613,7]
[422145943,1778619048000,-968.35,0.00039613,7]
[422145941,1778619048000,-23406.34319029,0.0003961,2]
[422145937,1778619048000,-219.05144,0.000396,115]
[422145940,1778619048000,-8385.21427624,0.0003961,2]
[422145936,1778619048000,-219.05143,0.000396,115]
[422145916,1778619048000,-968.35,0.00039506,30]
[422145929,1778619048000,-2292.47,0.00039561,2]
[422145914,1778619048000,-1500.0,0.000395,32]
[422145897,1778619048000,-1000.0,0.00039427,10]
[422145905,1778619048000,-666.643,0.00039452,30]
[422145938,1778619048000,-219.05143,0.000396,115]
[422145888,1778619048000,-2390.49,0.000394,14]
[422145887,1778619048000,-968.35,0.00039399,2]
[422145889,1778619048000,-511.65,0.000394,2]
[422145890,1778619048000,-188.48,0.00039401,2]
[422145891,1778619048000,-2292.47,0.00039401,2]
[422145893,1778619048000,-511.11,0.00039402,2]
[422145903,1778619048000,-500.0,0.00039452,30]
[422145904,1778619048000,-500.0,0.00039452,30]
[422145894,1778619048000,-188.56,0.00039403,2]
[422145892,1778619048000,-967.41,0.00039402,2]
[422145896,1778619048000,-528.0,0.00039408,10]
[422145895,1778619048000,-1815.08,0.00039407,120]
[422145900,1778619048000,-159.0818048,0.00039442,120]
[422145899,1778619048000,-410.3534786,0.00039442,120]
[422145902,1778619048000,-500.0,0.00039452,30]
[422145898,1778619048000,-161.9804885,0.00039442,120]
[422145901,1778619048000,-150.72263593,0.00039442,120]
[422145917,1778619048000,-511.65,0.00039507,30]
[422145907,1778619048000,-968.35,0.00039453,7]
[422145908,1778619048000,-188.48,0.00039454,7]
[422145912,1778619048000,-511.11,0.00039455,7]
[422145915,1778619048000,-2292.25,0.00039506,30]
[422145910,1778619048000,-2292.47,0.00039454,7]